Cogmind - Beta 15 @@@ ROGUE MODE // 2025.09.18 @ 19:38:50 Player: shapeshifter Result: Destroyed by S-27 Virus with Autogun Performance ------------- Evolutions (5) 2500 Regions Visited (15) 3000 Robots Destroyed (253) 1265 Value Destroyed (10548) 10548 Prototype IDs (30) 600 Alien Tech Used (0) 0 Bonus (4943) 4943 TOTAL SCORE: 22856 Bonus ------- High Alert Combat Kills 3351 Follower Combat Kills 304 Entered Garrisons 400 Entered DSFs 500 Aligned with FarCom 300 Acquired ECA 300 Friendly Fire -212 Cogmind --------- Core Integrity 0/1000 Matter 294/300 Energy 98/100 System Corruption 3% Temperature Cool (0) Movement Core (50) Location -5/Upper Caves Parts ------- > --- POWER (2) -------- (None) > --- PROPULSION (4) --- (None) > --- UTILITY (9) ------ Advanced Signal Interpreter > --- WEAPON (2) ------- (None) > --- INVENTORY (5) ---- Matter Compressor (250) Improved Trap Scanner Advanced Force Field Trap Reconfigurator PSU Rigger Peak State ------------ > --- POWER ------------ Improved Deuterium Engine Angular Momentum Engine > --- PROPULSION ------- Armored Heavy Treads Armored Heavy Treads > --- UTILITY ---------- Advanced Heat Sink Advanced Heat Sink High-capacity Storage Unit Advanced Signal Interpreter Advanced Launcher Guidance Computer Transmission Jammer Improved Medium Armor Plating Advanced Force Field Advanced Point Defense System > --- WEAPON ----------- Nova Cannon > --- INVENTORY -------- High-capacity Matter Pod High-capacity Matter Pod Matter Compressor Improved Trap Scanner Weapon Cycler Advanced Weapon Cycler Advanced Phase Shifter Force Field Advanced Point Defense System Trap Reconfigurator PSU Rigger Quantum Rifle Quantum Rifle Compact HERF Cannon Linear Accelerator Remote Datajack Improved Remote Datajack Field Lobotomy Kit Enhanced Force Lance [Rating: 109] Favorites ----------- Power Heavy Ion Engine Engine Heavy Ion Engine Power Core Micro Nuclear Core Reactor Light Quantum Reactor Propulsion Wheel Treads Armored Heavy Treads Leg Flexi-carbon Leg Wheel Wheel Utility High-capacity Storage Unit Device Advanced Heat Sink Storage High-capacity Storage Unit Processor Advanced Signal Interpreter Hackware Improved Hacking Suite Protection Medium Reactive Plating Weapon Heavy Missile Launcher Energy Gun Quantum Rifle Energy Cannon Nova Cannon Ballistic Gun Railgun Ballistic Cannon Linear Accelerator Launcher Heavy Missile Launcher Special Weapon Field Lobotomy Kit Impact Weapon Flail Piercing Weapon Enhanced Force Lance Build | -11 -10 -10 -10 -9 -8 -8 -8 -7 -7 -6 -6 -6 -5 -5 -5 ------- Run | Yrd Mat Min Exi Min Mat Sto Gar Fac DSF Fac Gar Fac Fac Upp Upp Slots Evolved 10 | . . . . . 4 . . 2 . 2 . . 2 . . Power 1 | . . . . . . . . . . . . . 1 . . Propulsion 2 | . . . . . . . . 1 . 1 . . . . . Utility 7 | . . . . . 4 . . 1 . 1 . . 1 . . Weapon . | . . . . . . . . . . . . . . . . Parts Attached 110 | 7 . 4 1 . 14 10 9 3 6 7 28 3 8 9 1 Power 15 | 1 . 1 . . 2 1 1 . 1 . 6 . 1 1 . Engine 9 | 1 . 1 . . 2 1 1 . . . 1 . 1 1 . Core 2 | . . . . . . . . . 1 . 1 . . . . Reactor 4 | . . . . . . . . . . . 4 . . . . Propulsion 18 | 2 . 2 . . 1 2 . 3 2 1 4 . . 1 . Treads 9 | 2 . . . . . . . 3 1 . 2 . . 1 . Leg 2 | . . . . . . . . . . . 2 . . . . Wheel 7 | . . 2 . . 1 2 . . 1 1 . . . . . Hover . | . . . . . . . . . . . . . . . . Flight . | . . . . . . . . . . . . . . . . Utility 51 | 2 . . 1 . 9 5 4 . 2 4 12 3 5 4 . Device 26 | 1 . . . . 6 3 1 . . . 9 1 3 2 . Storage 3 | 1 . . 1 . . . . . . 1 . . . . . Processor 3 | . . . . . 1 . . . . . 1 1 . . . Hackware 5 | . . . . . . . . . . 3 . . 1 1 . Protection 14 | . . . . . 2 2 3 . 2 . 2 1 1 1 . Artifact . | . . . . . . . . . . . . . . . . Weapon 26 | 2 . 1 . . 2 2 4 . 1 2 6 . 2 3 1 Energy Gun 3 | . . . . . . . . . . . . . 1 2 . Energy Cannon 4 | . . . . . . 1 1 . . . 1 . . 1 . Ballistic Gun 6 | 2 . . . . . . . . . 2 1 . . . 1 Ballistic Cannon 2 | . . . . . . . 1 . . . . . 1 . . Launcher 8 | . . 1 . . 1 1 2 . 1 . 2 . . . . Special Weapon 1 | . . . . . . . . . . . 1 . . . . Impact Weapon 1 | . . . . . 1 . . . . . . . . . . Slashing Weapon . | . . . . . . . . . . . . . . . . Piercing Weapon 1 | . . . . . . . . . . . 1 . . . . Special Melee Weapon . | . . . . . . . . . . . . . . . . Unidentified Prototypes 2 | . . . . . . 1 1 . . . . . . . . Parts Lost 44 | . . 3 . . 4 2 4 . 1 . 9 2 . 11 8 Power 5 | . . 1 . . . . . . . . 1 1 . 2 . Propulsion 9 | . . 2 . . 1 . 1 . . . 2 . . 2 1 Utility 19 | . . . . . 2 1 3 . 1 . 3 . . 5 4 Weapon 11 | . . . . . 1 1 . . . . 3 1 . 2 3 Highest Loss Streak 10 | . . 2 . . 3 1 3 . 1 . 3 1 . 10 8 To Critical Strikes . | . . . . . . . . . . . . . . . . Average Backups 16 | 2 4 6 10 17 17 18 18 18 17 16 16 19 19 18 12 Power . | . 1 . . 3 1 1 1 1 . . . 1 . . . Propulsion . | 1 2 1 . . . . . . . . . . . . . Utility 10 | . . 2 6 10 12 12 12 12 12 13 11 11 12 13 10 Weapon 2 | . 1 2 3 3 2 3 3 3 2 1 1 5 4 2 . Tool/Special . | . . . . . . . . . . . . . . . . Unused Backups 47 | . . . . . 11 4 5 . 5 1 4 . 3 3 11 Power 6 | . . . . . 4 . 1 . . . 1 . . . . Propulsion 3 | . . . . . 2 . . . . . . . . 1 . Utility 25 | . . . . . . 2 2 . 5 1 2 . 2 1 10 Weapon 8 | . . . . . 4 2 2 . . . . . . . . Tool/Special 5 | . . . . . 1 . . . . . 1 . 1 1 1 Average Slot Usage (%) 83 | . 100 87 85 85 82 95 92 82 82 74 79 80 84 65 32 Engine 7 | . 14 13 14 14 9 9 9 7 4 . . 5 11 4 1 Treads 4 | . 28 9 . . . . . 9 15 . 1 13 11 6 2 Wheel 10 | . . 12 28 28 15 18 14 4 2 12 10 . . . . Device 20 | . 14 14 14 14 13 23 23 15 10 6 23 33 28 16 4 Storage 8 | . 14 14 14 14 9 9 9 7 7 6 6 6 5 5 2 Processor 2 | . . . . . 5 . . . . . . 8 7 5 5 Hackware 1 | . . . . . . . . . . 11 6 . 2 2 2 Protection 9 | . . . . . 13 18 17 23 22 16 6 3 5 10 5 Energy Cannon 1 | . . . . . . . . . . . . 6 4 2 2 Ballistic Gun 3 | . 28 9 . . . . . . . 2 8 . . . . Launcher 6 | . . 12 14 14 8 8 13 15 14 10 2 . . . . Impact Weapon 2 | . . . . . 7 9 3 . . . . . . . . Peak Build Rating 109 | 7 7 8 12 12 37 38 44 43 59 78 108 108 109 108 72 Average Rating 51 | 4 7 7 9 12 26 32 34 38 50 71 80 99 103 77 34 On Entrance 44 | . 7 7 7 12 12 31 34 34 43 59 78 108 97 107 70 Naked Turns . | . . . . . . . . . . . . . . . . Heaviest Build 115 | 13 13 16 50 50 93 93 105 105 115 115 107 97 107 101 67 Greatest Support 120 | 40 40 40 26 26 26 26 26 66 66 56 120 120 120 120 70 Greatest Overweight (x) 6 | . . . 1 1 6 4 6 6 4 2 2 . 1 . . Average Overweight (x) 1 | . . . . 1 3 3 3 3 2 1 1 . . . . Largest Inventory Capacity 20 | 8 8 8 20 20 20 20 20 20 20 20 20 20 20 20 20 Average Capacity 18 | 7 8 8 16 20 20 20 20 20 20 20 20 20 20 20 12 Most Carried 20 | 5 5 8 17 19 20 20 20 20 20 20 20 20 20 20 19 Average Carried 17 | 3 4 6 11 18 18 19 18 18 19 18 17 19 19 19 11 Final Capacity 20 | 8 8 8 20 20 20 20 20 20 20 20 20 20 20 20 5 Final Carried 20 | 4 5 6 17 19 20 20 16 20 20 20 20 20 20 19 5 Class Distribution -------------------- 95% | Mutant Dominant Class ---------------- Mutant | -10/Materials Mutant | -10/Mines Mutant | -10/Exiles Mutant | -9/Mines Mutant | -8/Materials Mutant | -8/Storage Mutant | -8/Garrison Mutant | -7/Factory Mutant | -7/DSF Hacker-Mutant | -6/Factory Mutant | -6/Garrison Mutant | -6/Factory Mutant | -5/Factory Mutant | -5/Upper Caves Mutant | -5/Upper Caves Resources | -11 -10 -10 -10 -9 -8 -8 -8 -7 -7 -6 -6 -6 -5 -5 -5 ----------- Run | Yrd Mat Min Exi Min Mat Sto Gar Fac DSF Fac Gar Fac Fac Upp Upp Matter Collected 7885 | 255 90 163 66 22 413 1374 1057 7 333 324 2362 270 466 683 . Remotely 727 | . . . . . 225 502 . . . . . . . . . Salvage Created 6552 | 84 323 161 . . 553 1164 485 10 274 148 1797 344 869 340 . Parts 432 | 9 20 23 . . 66 56 39 2 13 11 109 15 51 18 . Haulers Intercepted 8 | . . . . . 2 5 . . . . . . 1 . . Recyclers Shooed 1 | . . . . . 1 . . . . . . . . . . Parts Field Recycled . | . . . . . . . . . . . . . . . . Retrieved Matter . | . . . . . . . . . . . . . . . . Parts Self-Destructed 26 | . . . . . . . . . . . . . . 20 6 Prevented 2 | . . . . . . . . . . . . . . 2 . Kills | -11 -10 -10 -10 -9 -8 -8 -8 -7 -7 -6 -6 -6 -5 -5 -5 ------- Run | Yrd Mat Min Exi Min Mat Sto Gar Fac DSF Fac Gar Fac Fac Upp Upp Combat Hostiles Destroyed 205 | . 8 13 . . 28 31 31 . 9 4 52 9 14 6 . Melee 1 | . . . . . . 1 . . . . . . . . . Guns 52 | . 8 4 . . . . . . . 4 31 . . 5 . Cannons 18 | . . . . . . . . . 1 . . 6 11 . . AOE 133 | . . 9 . . 28 30 31 . 8 . 21 3 3 . . Classes Destroyed 20 | 2 3 1 . . 6 3 . . 2 1 1 . 1 . . Worker 8 | 1 . . . . 4 2 . . . . . . 1 . . Builder 14 | . . 1 . . 6 5 . . . 1 . . 1 . . Tunneler 3 | 2 . . . . 1 . . . . . . . . . . Hauler 8 | . . . . . 2 5 . . . . . . 1 . . Recycler 3 | . 1 . . . . 2 . . . . . . . . . Mechanic 1 | . . . . . . 1 . . . . . . . . . Operator 4 | . . . . . 1 2 . 1 . . . . . . . Watcher 6 | . . . . . 2 2 . . . . . . 2 . . Swarmer 67 | . 3 9 . . 12 4 12 . . 3 16 3 3 2 . Cutter 8 | . . . . . . . . . . . 8 . . . . Saboteur 1 | . . . . . . . . . . . . . 1 . . Grunt 73 | . 5 4 . . 11 16 14 . 4 . 12 5 1 1 . Brawler 4 | . . . . . 1 2 . . . . . . 1 . . Duelist 2 | . . . . . . 1 . . . . 1 . . . . Protector 1 | . . . . . 1 . . . . . . . . . . Sentry 26 | . . . . . 3 7 5 . 1 . 9 . . 1 . Specialist 4 | . . . . . . . . . 2 . 2 . . . . Hunter 6 | . . . . . . 1 . . 1 . 2 . . 2 . Programmer 12 | . . . . . . . . . . 1 2 1 8 . . Heavy 1 | . . . . . . . . . 1 . . . . . . Thug 1 | . . . . . . 1 . . . . . . . . . Best Kill Streak 17 | 2 2 5 . . 17 8 12 1 4 5 5 3 3 2 . Combat Bots Only 12 | . 2 5 . . 10 7 12 . 4 4 5 3 2 2 . Max Kills in Single Turn 5 | 1 1 3 . . 5 4 4 1 2 2 3 2 3 2 . Gunslinging 1 | . . . . . . . . . . . . . . 1 . Exploded 5 | . . 3 . . 5 4 4 . 2 . 3 2 2 . . Melee 1 | . . . . . . 1 . . . . . . . . . Uniques/NPCs Destroyed . | . . . . . . . . . . . . . . . . Combat | -11 -10 -10 -10 -9 -8 -8 -8 -7 -7 -6 -6 -6 -5 -5 -5 -------- Run | Yrd Mat Min Exi Min Mat Sto Gar Fac DSF Fac Gar Fac Fac Upp Upp Hostile Shots Fired 1220 | . 40 40 . . 71 105 61 . 76 14 387 55 97 160 114 Missed 339 | . 9 11 . . 18 32 19 . 26 4 121 10 26 32 31 Hits 881 | . 31 29 . . 53 73 42 . 50 10 266 45 71 128 83 Melee 19 | . . . . . . . . . . . 19 . . . . Projectile 862 | . 31 29 . . 53 73 42 . 50 10 247 45 71 128 83 AOE 12 | . . . . . . 9 . . . . 3 . . . . Critical Strikes 30 | . . . . . . 3 7 . 3 . 10 1 2 1 3 Actively Blocked 2 | . . . . . . . . . . . . . . . 2 Part Disruptions 1 | . . . . . . . . . . . . . 1 . . Damage Taken 13306 | . 305 337 . . 657 1087 806 . 721 113 3647 884 1231 2112 1406 Core 1730 | . 60 19 . . 39 89 55 . 40 15 316 81 115 208 693 Absorbed by Shields 1372 | . . . . . 186 381 86 . . . 63 39 455 162 . Reduced by Siege Mode 234 | . . . . . . . . . . . . 40 5 189 . Redirected to Shielding 185 | . . . . . . . . . 11 . . . . 81 93 Ignored by Resistances 576 | . . . . . 51 109 38 . 249 37 92 . . . . Regen/Repaired (Parts) 410 | . . . . . 111 299 . . . . . . . . . Core Remaining (%) 75 | 100 . . . 68 . . 66 . 94 . . 51 . . . Volleys Fired 534 | 5 34 19 . . 49 56 53 1 21 11 150 29 60 41 5 Largest 2 | 2 2 2 . . 1 1 2 1 2 2 2 1 2 2 1 Hottest 207 | 40 40 53 . . 33 36 78 39 90 70 74 113 207 188 94 Shots Fired 711 | 10 68 37 . . 49 56 54 1 38 17 214 28 79 55 5 Gun 357 | 10 68 26 . . . . . . . 17 182 . 1 49 4 Cannon 111 | . . . . . . . . . 4 . . 27 77 2 1 Launcher 238 | . . 11 . . 49 56 54 1 34 . 32 1 . . . Special 5 | . . . . . . . . . . . . . 1 4 . Kinetic 330 | 10 68 26 . . . . . . . 17 182 . 23 . 4 Thermal 130 | . . . . . . . . . 4 . . 27 55 44 . Explosive 238 | . . 11 . . 49 56 54 1 34 . 32 1 . . . Electromagnetic 8 | . . . . . . . . . . . . . . 7 1 Robot Hit Streak 22 | 2 5 9 . . 14 14 22 . 6 9 11 7 9 14 1 Robot Miss Streak 6 | 2 5 3 . . 1 2 3 . 1 2 6 5 4 2 2 Penetration Max 2 | . . . . . . . . . . 2 1 . . . 1 Secondary Targets 5 | . 1 1 . . . . . . . . 2 . . 1 . Max Gunslinging Chain 1 | . 1 1 . . . . . . . . 1 . . 1 . Shots Hit Robots 407 | 4 36 20 . . 30 56 29 . 10 10 117 15 38 40 2 Core Hits 461 | 4 18 23 . . 89 105 43 1 27 6 102 13 21 8 1 Critical Kills 1 | . . . . . . 1 . . . . . . . . . Critical Parts Destroyed 6 | . . . . . 1 3 . . . . 2 . . . . Critical Strikes 11 | . . . . . 1 5 . . . . 2 . 3 . . Destroy 2 | . . . . . . . . . . . 2 . . . . Blast 3 | . . . . . . . . . . . . . 3 . . Smash 6 | . . . . . 1 5 . . . . . . . . . Melee Attacks 38 | . . . . . 4 32 2 . . . . . . . . Impact 38 | . . . . . 4 32 2 . . . . . . . . Slashing . | . . . . . . . . . . . . . . . . Piercing . | . . . . . . . . . . . . . . . . Sneak Attacks 8 | . . . . . 2 6 . . . . . . . . . Combat Hostiles . | . . . . . . . . . . . . . . . . Follow-up Attacks . | . . . . . . . . . . . . . . . . Damage Inflicted 27023 | 47 324 854 . . 3623 4711 2914 73 2065 471 7291 1256 2271 1015 108 Guns 5379 | 47 324 121 . . . . . . . 471 3341 . 28 974 73 Cannons 2696 | . . . . . . . . . 97 . 10 648 1865 41 35 Explosions 17751 | . . 733 . . 3364 3773 2914 73 1968 . 3940 608 378 . . Melee 1197 | . . . . . 259 938 . . . . . . . . . Ramming . | . . . . . . . . . . . . . . . . Kinetic 4830 | 47 324 121 . . . . . . . 471 3341 . 453 . 73 Thermal 3802 | . . . . . 353 . . . 97 . . 648 1775 929 . Explosive 17020 | . . 733 . . 3011 3773 2914 73 1968 . 3940 608 . . . Electromagnetic 164 | . . . . . . . . . . . . . 43 86 35 Impact 1207 | . . . . . 259 938 . . . . 10 . . . . Slashing . | . . . . . . . . . . . . . . . . Piercing . | . . . . . . . . . . . . . . . . Highest Corruption 3 | . . . . . . 1 1 . . . 2 3 3 3 3 Average Corruption 1 | . . . . . . 1 1 . . . 1 2 1 3 3 Corruption Purged . | . . . . . . . . . . . . . . . . Corruption Blocked . | . . . . . . . . . . . . . . . . Effects 75 | . . . . . . 9 7 . . . 20 8 14 14 3 Message Errors 15 | . . . . . . 1 1 . . . 7 1 1 3 1 Matter Fused 14 | . . . . . . 2 3 . . . 2 2 2 3 . Heat Flow Errors 7 | . . . . . . 2 . . . . . 1 1 1 2 Energy Discharges 9 | . . . . . . . 1 . . . 3 1 2 2 . Parts Fused 3 | . . . . . . 1 . . . . . . 2 . . Data Loss (minor) 18 | . . . . . . 3 1 . . . 6 1 3 4 . Data Loss (major) 3 | . . . . . . . 1 . . . 1 . 1 . . Misfires 1 | . . . . . . . . . . . . . 1 . . Alerts 3 | . . . . . . . . . . . 1 1 1 . . Weapon Failures 2 | . . . . . . . . . . . . 1 . 1 . Overload Shots . | . . . . . . . . . . . . . . . . Overflow Damage 1172 | . . 22 . . 226 314 77 . 25 . 122 234 152 . . Projectiles 130 | . . . . . . . . . . . . 20 110 . . Explosions 704 | . . 22 . . 156 46 77 . 25 . 122 214 42 . . Melee 338 | . . . . . 70 268 . . . . . . . . . Knockbacks 5 | . . . . . . 1 . . . . . . 4 . . Impact 1 | . . . . . . 1 . . . . . . . . . Kinetic 3 | . . . . . . . . . . . . . 3 . . Secondary 1 | . . . . . . . . . . . . . 1 . . Self-Inflicted Damage 1491 | . . 77 . . 176 198 340 . 63 . 492 109 36 . . Shots 51 | . . 3 . . 6 13 12 . 1 . 13 2 1 . . Rammed . | . . . . . . . . . . . . . . . . Targets Rammed . | . . . . . . . . . . . . . . . . Kicked . | . . . . . . . . . . . . . . . . Crushed . | . . . . . . . . . . . . . . . . Highest Temperature 417 | . 12 21 . . 48 198 167 21 165 116 201 135 214 417 118 Average Temperature 41 | . 6 8 . . 15 33 44 12 39 47 51 52 39 77 54 Received Heat Transfer 2632 | . 78 42 . . 216 298 365 . 81 . 651 277 138 405 81 Effects 1 | . . . . . . . . . . . . . . 1 . Energy Bleed 1 | . . . . . . . . . . . . . . 1 . Siege Activations 5 | . . . . . . . . . . . . 2 1 2 . Total Turns 75 | . . . . . . . . . . . . 18 6 51 . Longest Duration 30 | . . . . . . . . . . . . 16 6 30 . Martial Activations . | . . . . . . . . . . . . . . . . Shielding Activations . | . . . . . . . . . . . . . . . . Robots Disrupted . | . . . . . . . . . . . . . . . . Combat Hostiles . | . . . . . . . . . . . . . . . . Robots Corrupted 4 | . . . . . 1 3 . . . . . . . . . Combat Hostiles . | . . . . . . . . . . . . . . . . Parts Fried 2 | . . . . . . 2 . . . . . . . . . Impact Corruptions 14 | . . . . . 3 11 . . . . . . . . . Robots Melted 1 | . . . . . . . . . . . . . . 1 . Combat Hostiles 1 | . . . . . . . . . . . . . . 1 . Parts Melted 2 | . . . . . . . . . . . . . 2 . . Heat Transferred 3584 | . . . . . 250 . . . 150 . . 592 1408 1184 . Parts Sabotaged . | . . . . . . . . . . . . . . . . Parts Stolen . | . . . . . . . . . . . . . . . . Parts Stripped . | . . . . . . . . . . . . . . . . Power Chain Reactions 1 | . . . . . . . . . . . . . 1 . . Alert | -11 -10 -10 -10 -9 -8 -8 -8 -7 -7 -6 -6 -6 -5 -5 -5 ------- Run | Yrd Mat Min Exi Min Mat Sto Gar Fac DSF Fac Gar Fac Fac Upp Upp Maximum Alert Level 5 | . . . . . 2 3 5 3 3 2 5 4 3 . . Low Security (%) 33 | 100 100 100 . 100 94 10 . . . . . . . . . Level 1 6 | . . . . . 5 38 . . . . 3 . . . . Level 2 22 | . . . . . . 28 3 . 24 99 14 . 89 . . Level 3 14 | . . . . . . 22 25 100 75 . 20 . 10 . . Level 4 11 | . . . . . . . 38 . . . 14 100 . . . Level 5 12 | . . . . . . . 31 . . . 47 . . . . High Security . | . . . . . . . . . . . . . . . . Max Security . | . . . . . . . . . . . . . . . . Sterilizations 1 | . . . . . . . . . 1 . . . . . . Peak Influence 2431 | 5 50 199 . . 427 1074 1990 1046 1016 533 2431 1432 760 . . Initial 1276 | . 3 6 . . . 180 687 1044 693 533 340 1276 669 . . Average 691 | . 21 81 . . 98 503 1354 1022 839 465 1420 1354 567 . . Influence Increases 8455 | 15 185 415 . . 1073 1431 1343 17 333 114 2221 349 666 263 30 Destroy 0b10 Robot/C 4240 | . 160 260 . . 540 720 620 . 180 80 1040 180 300 160 . Destroy 0b10 Robot/NC 265 | 15 5 5 . . 85 95 . 5 20 5 5 . 25 . . Destroy Leader 648 | . 20 50 . . 108 194 20 . 30 20 80 40 66 20 . Allied During Kill 43 | . . 3 . . . 29 . . . . . . 3 8 . Trap Triggered on 0b10 20 | . . . . . 10 . . . . . . . 10 . . Successful Hack 108 | . . . . . 11 26 44 5 . 6 . . 16 . . Disable Machine 570 | . . 30 . . 135 90 45 . 15 . 30 90 135 . . Anti-Garrison Action 1050 | . . . . . . . 300 . . . 750 . . . . Destroy Structure 1211 | . . 67 . . 184 277 254 7 73 3 256 24 66 . . Lose Combat Pursuer 300 | . . . . . . . 60 . 15 . 60 15 45 75 30 Influence Decreases 8421 | 10 172 350 83 . 646 801 410 1016 308 643 277 1413 1286 818 188 Entered New Map 4757 | . 2 12 83 . . 247 370 946 298 483 147 1155 698 278 38 Time Decay 3066 | 10 170 308 . . 608 514 . 70 . 160 . 238 568 350 70 Lost Part 438 | . . 30 . . 38 20 40 . 10 . 90 20 . 110 80 Lost Ally 160 | . . . . . . 20 . . . . 40 . 20 80 . Squads Dispatched 31 | . 2 . . . 7 9 . . 2 2 . 3 6 . . Investigation 3 | . . . . . 2 1 . . . . . . . . . Extermination 5 | . . . . . . . . . . 1 . 1 3 . . Reinforcement 14 | . 2 . . . 3 3 . . 2 . . 2 2 . . Assault 5 | . . . . . 2 2 . . . . . . 1 . . Garrison 4 | . . . . . . 3 . . . 1 . . . . . Intercept . | . . . . . . . . . . . . . . . . Searches Triggered . | . . . . . . . . . . . . . . . . Construction Impeded 3 | . . . . . 2 1 . . . . . . . . . Haulers Reinforced 1 | . . . . . . . . . . . . 1 . . . Active Scanning Responses . | . . . . . . . . . . . . . . . . Cargo Convoy Interrupts . | . . . . . . . . . . . . . . . . Stealth | -11 -10 -10 -10 -9 -8 -8 -8 -7 -7 -6 -6 -6 -5 -5 -5 --------- Run | Yrd Mat Min Exi Min Mat Sto Gar Fac DSF Fac Gar Fac Fac Upp Upp Distress Signals 5 | . 3 . . . . 2 . . . . . . . . . Communications Jammed 5 | . . . . . . . . . . . . 1 4 . . Distress Signals 5 | . . . . . . . . . . . . 1 4 . . Times Spotted 259 | . 13 12 . . 32 43 31 . 13 4 46 11 26 18 10 Peak Tracking Total 9 | . 3 3 . . 9 8 7 . 5 3 5 4 7 5 5 Tactical Retreats 15 | . . . . . . . 2 . 1 . 4 1 3 3 1 Traps | -11 -10 -10 -10 -9 -8 -8 -8 -7 -7 -6 -6 -6 -5 -5 -5 ------- Run | Yrd Mat Min Exi Min Mat Sto Gar Fac DSF Fac Gar Fac Fac Upp Upp Traps Triggered 14 | . 1 . . . 1 1 2 . 2 . 7 . . . . Indirectly . | . . . . . . . . . . . . . . . . Trap Hack Attempts . | . . . . . . . . . . . . . . . . Triggered . | . . . . . . . . . . . . . . . . Disarmed . | . . . . . . . . . . . . . . . . Reprogrammed . | . . . . . . . . . . . . . . . . Reused 2 | . . . . . 1 . . . . . . . 1 . . Traps Reconfigurated 27 | . . . . . 5 . 4 . . . 4 . 14 . . Traps Extracted . | . . . . . . . . . . . . . . . . Installed . | . . . . . . . . . . . . . . . . Triggered 2 | . . . . . 1 . . . . . . . 1 . . Objects Rigged 5 | . . . . . . . 1 . . . 3 . . . 1 Exploded 1 | . . . . . . . . . . . . . . . 1 Machines | -11 -10 -10 -10 -9 -8 -8 -8 -7 -7 -6 -6 -6 -5 -5 -5 ---------- Run | Yrd Mat Min Exi Min Mat Sto Gar Fac DSF Fac Gar Fac Fac Upp Upp Machines Disabled 51 | . . 2 . . 9 6 9 . 1 . 9 6 9 . . Max in Single Turn 6 | . . 1 . . 6 1 2 . 1 . 1 2 5 . . Garrison Access 1 | . . . . . 1 . . . . . . . . . . Garrison Relay 9 | . . . . . . . 3 . . . 6 . . . . Phase Generator 1 | . . . . . . . 1 . . . . . . . . Machines Repaired . | . . . . . . . . . . . . . . . . Machines Dismantled . | . . . . . . . . . . . . . . . . Machines Sabotaged . | . . . . . . . . . . . . . . . . Overloaded Fab Kills . | . . . . . . . . . . . . . . . . Hacking | -11 -10 -10 -10 -9 -8 -8 -8 -7 -7 -6 -6 -6 -5 -5 -5 --------- Run | Yrd Mat Min Exi Min Mat Sto Gar Fac DSF Fac Gar Fac Fac Upp Upp Machines Accessed 38 | . 3 . 2 . 7 11 3 2 . 3 1 1 5 . . Terminals 21 | . 1 . . . 3 8 3 2 . . 1 . 3 . . Fabricators 3 | . . . . . . . . . . 1 . . 2 . . Repair Stations 3 | . . . . . 1 2 . . . . . . . . . Recycling Units 6 | . 2 . . . 2 . . . . 1 . 1 . . . Scanalyzers 1 | . . . . . 1 . . . . . . . . . . Garrison Access 2 | . . . . . . 1 . . . 1 . . . . . Total Hacks 90 | . 8 . 2 . 27 27 4 4 . 8 2 1 7 . . Successful 50 | . 1 . 2 . 18 17 3 1 . 4 . . 4 . . Failed 40 | . 7 . . . 9 10 1 3 . 4 2 1 3 . . Catastrophic 5 | . 2 . . . 1 . 1 . . . . . 1 . . Database Lockouts . | . . . . . . . . . . . . . . . . Manual 29 | . . . 1 . 10 14 . . . . . . 4 . . Terminals 48 | . 3 . . . 11 19 4 4 . . 2 . 5 . . Fabricators 5 | . . . . . . . . . . 3 . . 2 . . Repair Stations 11 | . . . . . 4 7 . . . . . . . . . Recycling Units 10 | . 5 . . . 2 . . . . 2 . 1 . . . Scanalyzers 10 | . . . . . 10 . . . . . . . . . . Garrison Access 4 | . . . . . . 1 . . . 3 . . . . . Terminal Hacks 13 | . . . 2 . . 6 3 1 . . . . 1 . . Record 1 | . . . 1 . . . . . . . . . . . . Open Door 3 | . . . . . . 3 . . . . . . . . . Open DSF 1 | . . . . . . . . 1 . . . . . . . Branch Access Points 1 | . . . . . . . . . . . . . 1 . . Zone Layout 3 | . . . . . . 3 . . . . . . . . . Garrison Registry 1 | . . . . . . . 1 . . . . . . . . Patrol Navigation 1 | . . . . . . . 1 . . . . . . . . Security Stations 1 | . . . . . . . 1 . . . . . . . . Proto ID Catalog 1 | . . . 1 . . . . . . . . . . . . Fabricator Hacks 4 | . . . . . . . . . . 2 . . 2 . . Network Status 2 | . . . . . . . . . . 1 . . 1 . . Build 2 | . . . . . . . . . . 1 . . 1 . . Repair Station Hacks 10 | . . . . . 4 6 . . . . . . . . . Scan Component 5 | . . . . . 2 3 . . . . . . . . . Repair 5 | . . . . . 2 3 . . . . . . . . . Recycling Unit Hacks 3 | . 1 . . . 1 . . . . 1 . . . . . Retrieve Matter 1 | . . . . . . . . . . 1 . . . . . Retrieve Components 2 | . 1 . . . 1 . . . . . . . . . . Scanalyzer 10 | . . . . . 10 . . . . . . . . . . Insert Component 5 | . . . . . 5 . . . . . . . . . . Analyze 5 | . . . . . 5 . . . . . . . . . . Garrison Access Hacks 2 | . . . . . . 1 . . . 1 . . . . . Unlock Access 2 | . . . . . . 1 . . . 1 . . . . . Unauthorized Hacks 8 | . . . . . 3 4 . . . . . . 1 . . Terminals 8 | . . . . . 3 4 . . . . . . 1 . . Botnet 3 | . . . . . 1 2 . . . . . . . . . Skim 5 | . . . . . 2 2 . . . . . . 1 . . Fabricators . | . . . . . . . . . . . . . . . . Repair Stations . | . . . . . . . . . . . . . . . . Recycling Units . | . . . . . . . . . . . . . . . . Scanalyzers . | . . . . . . . . . . . . . . . . Garrison Access . | . . . . . . . . . . . . . . . . Data Cores Recovered 1 | . . . . . . . . 1 . . . . . . . Used . | . . . . . . . . . . . . . . . . Hacking Detections 29 | . 3 . . . 6 8 3 1 . 3 1 1 3 . . Full Trace Events 4 | . . . . . 1 2 . . . . 1 . . . . Feedback Events . | . . . . . . . . . . . . . . . . Feedback Blocked . | . . . . . . . . . . . . . . . . Robot Schematics Acquired . | . . . . . . . . . . . . . . . . Robots Built . | . . . . . . . . . . . . . . . . Authchips . | . . . . . . . . . . . . . . . . Time . | . . . . . . . . . . . . . . . . Total Robot Build Rating . | . . . . . . . . . . . . . . . . Part Schematics Acquired 4 | . . . . . 4 . . . . . . . . . . Parts Built 4 | . . . . . . . . . . 2 . . 2 . . Authchips . | . . . . . . . . . . . . . . . . Time 164 | . . . . . . . . . . 58 . . 106 . . Total Part Build Rating 26 | . . . . . . . . . . 14 . . 12 . . Parts Repaired 5 | . . . . . 2 3 . . . . . . . . . Time 184 | . . . . . 64 120 . . . . . . . . . Parts Recycled . | . . . . . . . . . . . . . . . . Recycled Matter . | . . . . . . . . . . . . . . . . Retrieved Matter . | . . . . . . . . . . . . . . . . Retrieved Components 10 | . . . . . 10 . . . . . . . . . . Parts Scanalyzed 4 | . . . . . 4 . . . . . . . . . . Part Schematics Acquired 4 | . . . . . 4 . . . . . . . . . . Parts Damaged . | . . . . . . . . . . . . . . . . Bothacking | -11 -10 -10 -10 -9 -8 -8 -8 -7 -7 -6 -6 -6 -5 -5 -5 ------------ Run | Yrd Mat Min Exi Min Mat Sto Gar Fac DSF Fac Gar Fac Fac Upp Upp Used RIF Installer . | . . . . . . . . . . . . . . . . Robots Hacked . | . . . . . . . . . . . . . . . . Non-combat . | . . . . . . . . . . . . . . . . Combat . | . . . . . . . . . . . . . . . . Robot Hacks Applied . | . . . . . . . . . . . . . . . . Relay Couplers Released 36 | . . . . . 1 . 11 . . . 24 . . . . Machine Destruction 36 | . . . . . 1 . 11 . . . 24 . . . . Fabnet Peak Effective % . | . . . . . . . . . . . . . . . . Robots Rewired 2 | . . . . . . . . . . . 2 . . . . Allies Hacked . | . . . . . . . . . . . . . . . . Hacks Repelled . | . . . . . . . . . . . . . . . . Allies | -11 -10 -10 -10 -9 -8 -8 -8 -7 -7 -6 -6 -6 -5 -5 -5 -------- Run | Yrd Mat Min Exi Min Mat Sto Gar Fac DSF Fac Gar Fac Fac Upp Upp Total Allies 11 | . . 1 . . . 2 . . . . 2 . 1 4 1 Largest Group 2 | . . 1 . . . 2 . . . . 2 . 1 2 1 Highest-Rated Group 165 | . . 31 . . . 62 . . . . 82 . 142 58 165 Highest-Rated Ally 165 | . . 31 . . . 31 . . . . 41 . 142 47 165 Initial Warlord ECA Mod 147 | . . . . . . . . 7 7 16 16 26 25 25 25 Total Orders . | . . . . . . . . . . . . . . . . Ally Attacks 61 | . . 4 . . . 23 . . . . 3 . 3 28 . Total Damage 1108 | . . 42 . . . 338 . . . . 133 . 177 418 . Kills 8 | . . . . . . 5 . . . . . . 1 2 . Allies Corrupted . | . . . . . . . . . . . . . . . . Allies Melted 2 | . . . . . . . . . . . . . . 2 . Field Lobotomies 5 | . . . . . . . . . . . . . 1 4 . Intel | -11 -10 -10 -10 -9 -8 -8 -8 -7 -7 -6 -6 -6 -5 -5 -5 ------- Run | Yrd Mat Min Exi Min Mat Sto Gar Fac DSF Fac Gar Fac Fac Upp Upp Active Infowar (turns) 10275 | 8 470 829 490 347 1283 620 1256 144 139 . 2186 518 1719 266 . Optics 1282 | . . . . . 1282 . . . . . . . . . . Sensors 1842 | . . . . . . . . . . . . . 1576 266 . Traps 305 | . . . . . . . . . . . . . 305 . . Seismic 4539 | 8 470 829 490 347 236 620 1256 144 139 . . . . . . Jamming 4689 | . . . . . . . . . . . 2186 518 1719 266 . Robot Analysis Total . | . . . . . . . . . . . . . . . . Derelict Logs Recovered 4 | . . 1 . 2 . . . . . . . . . 1 . Drone Launches . | . . . . . . . . . . . . . . . . Drone Recoveries . | . . . . . . . . . . . . . . . . Exploration | -11 -10 -10 -10 -9 -8 -8 -8 -7 -7 -6 -6 -6 -5 -5 -5 ------------- Run | Yrd Mat Min Exi Min Mat Sto Gar Fac DSF Fac Gar Fac Fac Upp Upp Turns Passed 13548 | 106 470 829 490 347 2235 1409 1256 144 361 335 2381 518 1719 789 159 Spaces Moved 7199 | 67 218 615 477 308 938 718 698 64 142 207 1237 236 709 364 201 Core 193 | 28 . . . . . . . . . . . . . . 165 Treads 2054 | 39 218 245 . . . . . 30 81 . 96 236 709 364 36 Legs 6 | . . . . . . . . . . . 6 . . . . Wheels 4946 | . . 370 477 308 938 718 698 34 61 207 1135 . . . . Hover . | . . . . . . . . . . . . . . . . Flight . | . . . . . . . . . . . . . . . . Fastest Speed 50 | 50 160 90 90 105 105 135 135 190 145 115 115 170 170 160 50 Average Speed 136 | 114 160 117 100 105 139 135 152 210 196 123 121 170 170 163 69 Slowest Speed 465 | 160 160 160 105 105 170 140 190 465 225 130 190 170 250 170 160 Overloaded Moves . | . . . . . . . . . . . . . . . . Propulsion Burnouts . | . . . . . . . . . . . . . . . . Robots Hopped . | . . . . . . . . . . . . . . . . Potential Cave-ins 2 | . . . . . . 2 . . . . . . . . . Cave-ins Triggered . | . . . . . . . . . . . . . . . . Exploration Rate (%) 46 | 4 30 98 69 57 46 83 69 2 78 5 85 4 21 60 37 Regions Visited 15 Branch Regions 6 Pre-discovered Areas 4 | . . 1 1 . . . . . . . . . . 2 . Known Exits Taken 7 | . . . . 1 . 1 . 1 . 1 . 1 1 1 . Unknown Exits Taken 5 | 1 1 1 1 . 1 . . . . . . . . . . Scrap Searched 8 | . . 2 . 2 . . . . . . . . . 4 . Spaces Dug 68 | . . . . . . . 35 . . . 29 1 3 . . Terrain Destroyed 1581 | . . 84 . . 200 355 394 6 128 4 341 24 33 12 . Melee . | . . . . . . . . . . . . . . . . Projectile 74 | . . . . . . . . . . 4 26 8 24 12 . AOE 1507 | . . 84 . . 200 355 394 6 128 . 315 16 9 . . Terrain Rammed . | . . . . . . . . . . . . . . . . Walls Destroyed . | . . . . . . . . . . . . . . . . Machines Disabled . | . . . . . . . . . . . . . . . . Actions | -11 -10 -10 -10 -9 -8 -8 -8 -7 -7 -6 -6 -6 -5 -5 -5 --------- Run | Yrd Mat Min Exi Min Mat Sto Gar Fac DSF Fac Gar Fac Fac Upp Upp Total 10255 | 89 285 687 488 331 1815 1058 841 73 194 274 1947 323 1134 499 217 Wait 1999 | . 33 43 . 22 765 208 41 . 1 39 404 48 327 64 4 Move 7185 | 66 217 614 476 307 937 718 697 63 141 206 1236 235 708 363 201 Hop . | . . . . . . . . . . . . . . . . Pick Up 157 | 11 1 5 10 2 25 14 14 5 9 7 33 2 8 11 . Fast Attach 21 | . . . . . 3 3 1 2 1 . 7 1 2 1 . Attach 79 | 7 . 3 . . 10 4 6 1 4 5 22 1 4 10 2 Detach 10 | . . . . . 1 1 . . . 1 3 1 . 2 1 Swap 73 | . . 1 1 . 4 8 11 . 3 2 19 4 17 3 . Drop 109 | . . 2 1 . 17 14 15 1 14 3 25 2 8 4 3 Fire 534 | 5 34 19 . . 49 56 53 1 21 11 150 29 60 41 5 Melee 38 | . . . . . 4 32 2 . . . . . . . . Ram . | . . . . . . . . . . . . . . . . Kick . | . . . . . . . . . . . . . . . . Crush . | . . . . . . . . . . . . . . . . Escape Stasis 42 | . . . . . . . . . . . 42 . . . . Rewire 3 | . . . . . . . . . . . 3 . . . . Trap 5 | . . . . . . . 1 . . . 3 . . . 1 Miscellaneous . | . . . . . . . . . . . . . . . . Route ------- -11/Scrapyard -10/Materials (discovered 2 exits: [*Mat] / [*Min]) -10/Mines (discovered 3 exits: [*Mat x2] / *Exi) -10/Exiles -9/Mines (discovered 2 exits: *Mat x2) -8/Materials -8/Storage (discovered 3 exits: *Fac / [*Rec] / Gar) -8/Garrison (discovered 3 exits: *Fac x3) -7/Factory (discovered 2 exits: *Fac / DSF) -7/DSF -6/Factory -6/Garrison (discovered 3 exits: *Fac x3) -6/Factory (discovered 2 exits: *Fac / *Low) -5/Factory (discovered 3 exits: *Fac / *Upp x2) -5/Upper Caves -5/Upper Caves History --------- Turn | Location | Event 4 | -11/Scrapyard | Discovered new exit (range 15) 107 | -11/Scrapyard | Entered Materials 283 | -10/Materials | Discovered new exit (range 7) 310 | -10/Materials | Build established: Mutant 453 | -10/Materials | Discovered new exit (range 3) 577 | -10/Materials | Entered Mines 650 | -10/Mines | Received a Rocket Launcher from a helpful Derelict 651 | -10/Mines | Discovered new exit (range 7) 758 | -10/Mines | Received a Mining Laser from a helpful Derelict 1020 | -10/Mines | Discovered new exit (range 13) 1072 | -10/Mines | Learned location of Zion (-6) 1402 | -10/Mines | Deemed a non-threat by the Exiles lab entrance 1402 | -10/Mines | Discovered new exit (range 5) 1406 | -10/Mines | Entered Exiles 1429 | -10/Exiles | Met 8R-AWN 1443 | -10/Exiles | Met EX-HEX 1490 | -10/Exiles | Met EX-DEC 1627 | -10/Exiles | Met EX-BIN 1639 | -10/Exiles | Aligned with FarCom system 1640 | -10/Exiles | Given EX-Vault access code 1665 | -10/Exiles | Opened EX-Vault 1674 | -10/Exiles | Found Field Lobotomy Kit 1677 | -10/Exiles | Found PSU Rigger 1681 | -10/Exiles | Found Trap Reconfigurator 1705 | -10/Exiles | Warned to stay clear of 0b10 Research branches 1886 | -10/Exiles | Discovered new exit (range 10) 1896 | -10/Exiles | Stole three prototypes: Trap Reconfigurator, PSU Rigger, Field Lobotomy Kit 1896 | -10/Exiles | Entered Mines 1916 | -9/Mines | Identified exit to Materials 1938 | -9/Mines | Met a Derelict bent on vengeance 1946 | -9/Mines | Learned 2 Materials zone layouts 2099 | -9/Mines | Discovered exit to Materials (range 9) 2178 | -9/Mines | Assembled infested the area 2243 | -9/Mines | Entered Materials 2243 | -8/Materials | Evolved 4 slots: Utility x4 2349 | -8/Materials | Lost 3 parts (1n1u1w) 2583 | -8/Materials | Repaired Tractor Beam 3846 | -8/Materials | Repaired Hvy. Armor Plating 4401 | -8/Materials | Discovered new exit (range 15) 4478 | -8/Materials | Entered Storage 4480 | -8/Storage | FarCom data flow suspended 4493 | -8/Storage | Destroyed 10 combat bots 5068 | -8/Storage | Discovered new exit (range 12) 5143 | -8/Storage | Used back door to open Recycling access 5485 | -8/Storage | Discovered new exit (range 16) 5518 | -8/Storage | Met a pair of Derelict thieves 5559 | -8/Storage | Garrison activated, responded to threat 5592 | -8/Storage | Destroyed 7 combat bots 5660 | -8/Storage | Repaired Hvy. Armor Plating 5708 | -8/Storage | Repaired Weapon Cycler 5833 | -8/Storage | Repaired Imp. Grenade Launcher 5887 | -8/Storage | Identified exit to Garrison 5887 | -8/Storage | Entered Garrison 5953 | -8/Garrison | Phase Generator disabled 6130 | -8/Garrison | Triggered checkpoint 6176 | -8/Garrison | Garrison Relay disabled 6306 | -8/Garrison | Triggered checkpoint 6327 | -8/Garrison | Destroyed 12 combat bots 6554 | -8/Garrison | Discovered new exit (range 10) 6574 | -8/Garrison | Garrison Relay disabled 6627 | -8/Garrison | Triggered checkpoint 6640 | -8/Garrison | Garrison Relay disabled 6668 | -8/Garrison | Lost 3 parts (1n2u) 6683 | -8/Garrison | Learned Factory security intel 6799 | -8/Garrison | Triggered checkpoint 6911 | -8/Garrison | Triggered checkpoint 6943 | -8/Garrison | Discovered new exit (range 11) 7006 | -8/Garrison | Discovered new exit (range 69) 7006 | -8/Garrison | Discovered new exit (range 13) 7006 | -8/Garrison | Discovered new exit (range 41) 7143 | -8/Garrison | Entered Factory 7143 | -7/Factory | Evolved 2 slots: Propulsion x1, Utility x1 7285 | -7/Factory | Discovered new exit (range 6) 7287 | -7/Factory | Identified exit to DSF 7287 | -7/Factory | Entered DSF 7373 | -7/DSF | Additional patrols routed to DSF 7573 | -7/DSF | Sterilization system engaged 7593 | -7/DSF | Ambient heat levels rising (+10) 7608 | -7/DSF | Ambient heat levels rising (+10) 7623 | -7/DSF | Ambient heat levels rising (+10) 7626 | -7/DSF | Discovered new exit (range 15) 7638 | -7/DSF | Ambient heat levels rising (+10) 7648 | -7/DSF | Entered Factory 7648 | -6/Factory | Evolved 2 slots: Propulsion x1, Utility x1 7871 | -6/Factory | Fabricated Railgun (x2) 7927 | -6/Factory | Garrison activated, responded to threat 7970 | -6/Factory | Identified exit to Garrison 7983 | -6/Factory | Entered Garrison 8169 | -6/Garrison | Garrison Relay disabled 8175 | -6/Garrison | Triggered checkpoint 8229 | -6/Garrison | Triggered checkpoint 8549 | -6/Garrison | Triggered checkpoint 8709 | -6/Garrison | Discovered new exit (range 8) 8851 | -6/Garrison | Garrison Relay disabled 8899 | -6/Garrison | Garrison Relay disabled 9085 | -6/Garrison | Triggered checkpoint 9137 | -6/Garrison | Triggered checkpoint 9216 | -6/Garrison | Discovered new exit (range 10) 9420 | -6/Garrison | Discovered new exit (range 10) 9467 | -6/Garrison | Triggered checkpoint 9505 | -6/Garrison | Triggered checkpoint 9613 | -6/Garrison | Garrison Relay disabled 9891 | -6/Garrison | Triggered checkpoint 9901 | -6/Garrison | Garrison Relay disabled 10181 | -6/Garrison | Lost 3 parts (1n1u1w) 10364 | -6/Garrison | Entered Factory 10500 | -6/Factory | Discovered new exit (range 11) 10580 | -6/Factory | Discovered new exit (range 7) 10726 | -6/Factory | Identified exit to Factory 10777 | -6/Factory | Identified exit to Lower Caves 10882 | -6/Factory | Entered another Factory area 10882 | -5/Factory | Evolved 2 slots: Power x1, Utility x1 11924 | -5/Factory | Fabricated Imp. Plasma Cutter (x2) 12082 | -5/Factory | First assault squad dispatched 12088 | -5/Factory | Assimilated H-71 Marshal with FLK Orb 12098 | -5/Factory | Discovered new exit (range 16) 12134 | -5/Factory | Identified exit to Factory 12276 | -5/Factory | Identified exit to Upper Caves 12601 | -5/Factory | Entered Upper Caves 12618 | -5/Upper Caves | Met a Warlord Commander 12619 | -5/Upper Caves | Learned location of Warlord (-5) 12620 | -5/Upper Caves | Warlord Commander delivered Encrypted Comm Array 12629 | -5/Upper Caves | Found Encrypted Comm Array 12649 | -5/Upper Caves | Encountered a Warlord checkpoint 12826 | -5/Upper Caves | Attracted the attention of an 0b10 checkpoint 12936 | -5/Upper Caves | Lost 10 parts (2p2n4u2w) 12989 | -5/Upper Caves | Assimilated G-67 Veteran with FLK Orb 13019 | -5/Upper Caves | Assimilated G-50 Soldier with FLK Orb 13037 | -5/Upper Caves | Assimilated G-50 Soldier with FLK Orb 13040 | -5/Upper Caves | Assimilated G-50 Soldier with FLK Orb 13337 | -5/Upper Caves | Learned location of Armory (-3) 13356 | -5/Upper Caves | Discovered new exit (range 10) 13369 | -5/Upper Caves | Identified exit to Upper Caves 13390 | -5/Upper Caves | Entered another Upper Caves area 13424 | -5/Upper Caves | Attracted the attention of an 0b10 checkpoint 13466 | -5/Upper Caves | Core integrity fell below 50% 13501 | -5/Upper Caves | Lost 8 parts (1n4u3w) 13541 | -5/Upper Caves | Core integrity fell below 20% 13549 | -5/Upper Caves | Destroyed by S-27 Virus with Autogun Last Messages --------------- 13454_ Critical hit (Burn: +37). 13454_ Slug penetrates S-27 Virus. 13454_ S-27 Virus destroyed. 13456_ Slug penetrates Wall. 13457_ Penetrated by Slug. 13458_ Slug penetrates Wall. 13459_ VTOL Module fries itself beyond repair. 13460_ KE Penetrator destroyed. 13460_ Slug penetrates Wall. 13461_ Adv. Heat Sink destroyed. 13463_ Com. HERF Cannon destroyed. 13465_ Lgt. Nuclear Core fries itself beyond repair. 13465_ Dropped Hcp. Storage Unit. 13465_ Penetrated by Slug. 13466_ Dropped Imp. Core Shielding. 13470_ Imp. Core Shielding destroyed. 13504_ |N%VSRPYAXH